bitfinex-derivatives/quotes_SOLF0:USTF0_20241206
["timestamp","ask_amount","ask_price","bid_price","bid_amount"]
[1733487041817,5.99333208,235.52,235.45,5.99333208]
[1733487042012,11.38487127,235.51,235.45,5.99333208]
[1733487042215,5.99333208,235.52,235.45,5.99333208]
[1733487042416,11.38396026,235.51,235.45,5.99333208]
[1733487042716,5.99333208,235.52,235.45,5.99333208]
[1733487043521,1.3166,235.53,235.45,5.99333208]
[1733487043722,11.3817455,235.52,235.45,5.99333208]
[1733487043921,5.99333208,235.52,235.45,5.99333208]
[1733487044422,1.3087,235.59,235.51,5.99333208]
[1733487044622,1.3087,235.59,235.52,2.04]
[1733487044623,17.37253382,235.58,235.52,2.04]
[1733487044827,11.37920174,235.57,235.52,2.04]
[1733487045122,5.99333208,235.58,235.52,2.04]
[1733487045420,11.37600674,235.57,235.52,2.04]
[1733487045621,5.99333208,235.55,235.52,2.04]
[1733487045819,5.99333208,235.53,235.52,2.04]
[1733487047324,1.3087,235.59,235.52,2.04]
[1733487047523,5.99333208,235.53,235.52,2.04]
[1733487048117,5.99333208,235.53,235.43,5.99333208]
[1733487048118,17.36878679,235.53,235.43,5.99333208]
[1733487048322,5.99333208,235.46,235.33,1.2023]
[1733487048524,5.99333208,235.44,235.37,5.99333208]
[1733487048724,5.99333208,235.45,235.37,5.99333208]
[1733487049124,5.99333208,235.45,235.39,5.99333208]
[1733487050917,5.99333208,235.43,235.4,2.04]
[1733487052826,5.99333208,235.41,235.32,30.52534146]
[1733487053025,5.99333208,235.41,235.33,8.03333208]
[1733487053226,5.99333208,235.41,235.34,2.04]
[1733487053425,5.99333208,235.41,235.26,2.613]
[1733487053426,5.99333208,235.39,235.35,2.04]
[1733487054422,1.2787,235.47,235.35,2.04]
[1733487054423,5.99333208,235.37,235.35,2.04]
[1733487055825,5.99333208,235.39,235.35,2.04]
[1733487056526,1.2787,235.47,235.35,2.04]
[1733487056724,5.99333208,235.43,235.35,8.03333208]
[1733487056924,11.37918018,235.42,235.35,8.03333208]
[1733487057133,5.99333208,235.43,235.35,8.03333208]
[1733487059026,5.99333208,235.41,235.35,2.04]
[1733487059230,5.99333208,235.39,235.35,2.04]
[1733487059827,5.99333208,235.41,235.35,2.04]
[1733487063336,1.2787,235.47,235.35,2.04]
[1733487063534,5.99333208,235.42,235.35,2.04]
[1733487067744,1.2787,235.47,235.35,2.04]
[1733487068040,5.99333208,235.45,235.36,5.99333208]
[1733487068741,1.2787,235.47,235.36,5.99333208]
[1733487068937,5.99333208,235.45,235.36,5.99333208]
[1733487072344,5.99333208,235.45,235.35,2.04]
[1733487072541,5.99333208,235.43,235.35,2.04]
[1733487072749,5.99333208,235.41,235.27,4.25158049]
[1733487073048,5.99333208,235.39,235.31,5.99333208]
[1733487073241,5.99333208,235.39,235.28,2.02]
[1733487073545,5.99333208,235.39,235.32,5.99333208]
[1733487073749,5.99333208,235.39,235.33,2.02]
[1733487075248,5.99333208,235.35,235.25,30.53789447]
[1733487075439,5.99333208,235.31,235.25,30.53789447]
[1733487075646,5.99333208,235.31,235.26,2.02]
[1733487076644,5.99333208,235.31,235.25,30.53789447]
[1733487076645,5.99333208,235.31,235.27,2.02]
[1733487077644,2.6564,235.42,235.27,2.02]
[1733487077840,11.35730346,235.41,235.27,2.02]
[1733487078041,5.99333208,235.32,235.27,2.02]
[1733487078251,5.99333208,235.3,235.27,2.02]
[1733487080043,5.99333208,235.3,235.25,30.53789447]
[1733487080248,5.99333208,235.27,235.26,2.02]
[1733487080458,5.99333208,235.27,235.25,2.02]
[1733487080847,5.99333208,235.27,235.14,30.91075054]
[1733487081051,5.99333208,235.22,235.16,2.02]
[1733487081451,5.99333208,235.24,235.16,8.01333208]
[1733487081849,5.99333208,235.22,235.16,2.02]
[1733487082556,5.99333208,235.2,235.14,30.91075054]
[1733487082850,2.7471,235.26,235.15,2.02]
[1733487082851,5.99333208,235.22,235.15,2.02]
[1733487083058,2.7471,235.26,235.18,5.99333208]
[1733487083254,1.3622,235.26,235.2,5.99333208]
[1733487083456,5.99333208,235.3,235.22,5.99333208]
[1733487083848,5.99333208,235.31,235.22,5.99333208]
[1733487084450,5.99333208,235.29,235.22,5.99333208]
[1733487086554,1.3622,235.32,235.24,5.99333208]
[1733487086756,7.35553208,235.32,235.24,5.99333208]
[1733487087060,7.35553208,235.32,235.26,5.99333208]
[1733487087061,1.3622,235.32,235.26,5.99333208]
[1733487087266,1.3622,235.32,235.27,2.04]
[1733487087952,7.35553208,235.32,235.27,2.04]
[1733487088860,5.99333208,235.3,235.27,2.04]
[1733487089463,7.35553208,235.32,235.27,2.04]
[1733487092271,5.99333208,235.3,235.27,2.04]
[1733487092567,5.99333208,235.28,235.05,27.63183112]
[1733487092760,5.99333208,235.22,235.16,2.04]
[1733487092966,3.4022,235.32,235.16,8.03333208]
[1733487093264,5.99333208,235.26,235.18,5.99333208]
[1733487093665,5.99333208,235.24,235.16,8.03333208]
[1733487094457,5.99333208,235.24,235.16,2.04]
[1733487094764,5.99333208,235.24,235.16,8.03333208]
[1733487094963,5.99333208,235.22,235.17,2.04]
[1733487095758,3.4022,235.32,235.17,8.03333208]
[1733487095964,5.99333208,235.25,235.17,8.03333208]
[1733487096762,5.99333208,235.23,235.17,8.03333208]
[1733487097163,5.99333208,235.25,235.17,8.03333208]
[1733487097365,5.99333208,235.25,235.19,5.99333208]
[1733487097767,5.99333208,235.25,235.17,8.03333208]
[1733487098868,5.99333208,235.23,235.17,8.03333208]
[1733487099167,5.99333208,235.21,235.17,2.04]
[1733487100373,5.99333208,235.23,235.17,2.04]
[1733487101373,5.99333208,235.21,235.17,2.04]
[1733487101868,5.99333208,235.21,235.13,5.99333208]
[1733487101869,5.99333208,235.19,235.09,2.02]
[1733487102073,12.74,235.35,235.09,2.02]
[1733487102074,5.99333208,235.15,235.09,2.02]
[1733487103176,5.99333208,235.19,235.11,5.99333208]
[1733487103877,1.3846,235.2,235.13,5.99333208]
[1733487104078,1.3846,235.2,235.14,2.02]
[1733487106176,5.99333208,235.19,235.14,2.02]
[1733487107274,1.3846,235.2,235.14,2.02]
[1733487108275,5.99333208,235.21,235.14,2.02]
[1733487108482,1.3322,235.25,235.14,2.02]
[1733487108783,5.99333208,235.21,235.14,2.02]
[1733487112778,5.99333208,235.19,235.14,2.02]
[1733487114593,5.99333208,235.21,235.14,2.02]
[1733487115481,5.99333208,235.24,235.15,5.99333208]
[1733487118690,5.99333208,235.24,235.14,2.02]
[1733487118691,1.3322,235.25,235.17,5.99333208]
[1733487119385,1.3322,235.25,235.19,5.99333208]
[1733487119584,1.3322,235.25,235.2,2.02]
[1733487120689,5.99333208,235.24,235.2,2.02]
[1733487127292,5.99333208,235.22,235.2,2.02]
[1733487128896,7.32553208,235.25,235.2,2.02]
[1733487129090,1.3322,235.25,235.2,8.01333208]
[1733487130296,1.3322,235.25,235.2,2.02]
[1733487133306,1.3322,235.25,235.21,5.99333208]
[1733487133502,5.99333208,235.29,235.21,5.99333208]
[1733487135104,5.99333208,235.3,235.23,5.99333208]
[1733487135294,11.40094306,235.29,235.23,5.99333208]
[1733487135494,11.40082695,235.28,235.23,5.99333208]
[1733487135699,5.99333208,235.3,235.23,5.99333208]
[1733487135901,11.400812,235.29,235.23,5.99333208]
[1733487136198,11.400812,235.28,235.23,5.99333208]
[1733487136401,5.99333208,235.3,235.23,5.99333208]
[1733487136602,11.40452757,235.29,235.21,5.99333208]
[1733487136802,11.40452757,235.28,235.21,5.99333208]
[1733487137004,5.99333208,235.29,235.21,5.99333208]
[1733487137204,11.40453579,235.28,235.21,5.99333208]
[1733487137505,11.40453579,235.27,235.21,5.99333208]
[1733487137704,5.99333208,235.29,235.21,5.99333208]
[1733487138003,11.4084935,235.28,235.21,5.99333208]
[1733487138197,5.99333208,235.29,235.21,5.99333208]
[1733487138398,11.40749909,235.28,235.21,5.99333208]
[1733487138705,5.99333208,235.29,235.21,5.99333208]
[1733487138906,11.40754259,235.28,235.21,5.99333208]
[1733487139108,5.99333208,235.29,235.21,5.99333208]
[1733487139805,5.99333208,235.22,235.03,5.86013052]
[1733487140006,5.99333208,235.07,234.99,5.99333208]
[1733487140201,5.99333208,235.07,235.0,4.19601055]
[1733487141298,2.02,235.16,234.98,2.6644]
[1733487141299,5.99333208,235.05,234.98,2.6644]
[1733487141500,5.99333208,235.05,234.99,2.02]
[1733487142108,9.38335197,235.1,234.99,2.02]
[1733487142509,9.38335197,235.07,234.98,2.02]
[1733487143805,9.38335197,235.07,234.92,9.38335197]
[1733487144006,9.38335197,235.07,234.93,2.02]
[1733487144505,9.38335197,235.04,234.93,2.02]
[1733487145718,9.38335197,235.01,234.9,2.7195]
[1733487146110,9.38335197,235.01,234.91,2.02]
[1733487147915,9.38335197,234.98,234.91,2.02]
[1733487148815,9.38335197,235.01,234.91,2.02]
[1733487149007,2.02,235.03,234.91,2.02]
[1733487149211,11.40335197,235.04,234.91,2.02]
[1733487150112,9.38335197,235.04,234.91,2.02]
[1733487152018,4.0503,235.09,234.96,9.38335197]
[1733487152320,4.0503,235.09,234.97,2.02]
[1733487152721,4.0503,235.09,234.97,6.2586435]
[1733487153821,1.3337,235.09,234.97,6.2586435]
[1733487154318,1.3337,235.09,234.97,8.9024435]
[1733487154718,9.38335197,235.12,234.99,9.38335197]
[1733487155117,9.38335197,235.15,234.99,9.38335197]
[1733487157725,9.38335197,235.15,235.02,9.38335197]
[1733487157927,9.38335197,235.15,235.03,2.02]
[1733487158620,3.368,235.18,235.03,6.21182601]
[1733487158824,10.73135197,235.18,235.03,2.02]
[1733487159220,10.73135197,235.18,235.03,6.19396493]
[1733487160223,10.73135197,235.18,235.05,9.38335197]
[1733487160422,1.348,235.18,235.05,9.38335197]
[1733487160828,2.02,235.25,235.08,9.38335197]
[1733487161025,2.5702,235.28,235.11,9.38335197]
[1733487161226,9.38335197,235.26,235.12,2.02]
[1733487161824,9.38335197,235.26,235.12,3.2922]
[1733487162024,9.38335197,235.26,235.13,4.34540165]
[1733487162328,13.97355197,235.28,235.14,9.38335197]
[1733487162824,11.95355197,235.28,235.14,9.38335197]
[1733487163735,1.3062,235.28,235.14,9.38335197]
[1733487164336,1.3062,235.28,235.17,9.38335197]
[1733487164535,1.3062,235.28,235.18,2.02]
[1733487167137,9.38335197,235.24,235.18,2.02]
[1733487168934,9.38335197,235.27,235.18,2.02]
[1733487170345,1.3062,235.28,235.18,2.02]
[1733487174148,9.38335197,235.24,235.18,2.02]
[1733487175647,9.38335197,235.24,235.12,1.2722]
[1733487175953,9.38335197,235.21,235.13,2.02]
[1733487186060,6.00001864,235.18,235.13,2.02]
[1733487187162,2.02,235.24,235.13,2.02]
[1733487187356,6.00001864,235.18,235.13,2.02]
[1733487187556,6.00001864,235.18,235.1,6.00001864]
[1733487187754,6.00001864,235.18,235.11,2.02]
[1733487189462,6.00001864,235.16,235.11,2.02]
[1733487189757,2.02,235.24,235.11,2.02]
[1733487189758,6.00001864,235.14,235.11,2.02]
[1733487190366,6.00001864,235.14,235.1,2.02]
[1733487191163,6.00001864,235.12,235.1,2.02]
[1733487191464,6.00001864,235.14,235.1,2.02]
[1733487191659,2.02,235.24,235.1,2.02]
[1733487191966,6.00001864,235.17,235.1,8.02001864]
[1733487192568,2.7294,235.27,235.1,8.02001864]
[1733487192769,13.35881174,235.26,235.1,8.02001864]
[1733487192969,6.00001864,235.19,235.1,8.02001864]
[1733487193567,6.00001864,235.19,235.1,12.27891782]
[1733487194068,6.00001864,235.17,235.1,8.02001864]
[1733487194264,6.00001864,235.15,235.1,2.02]
[1733487194865,6.00001864,235.13,235.1,2.02]
[1733487195573,6.00001864,235.13,235.07,30.02634188]
[1733487195776,6.00001864,235.13,235.08,2.02]
[1733487197576,6.00001864,235.11,235.08,2.02]
[1733487197975,6.00001864,235.09,235.08,2.02]
[1733487198676,6.00001864,235.09,235.02,2.02]
[1733487198982,6.00001864,235.07,235.02,2.02]
[1733487199181,6.00001864,235.09,235.02,2.02]
[1733487199376,6.00001864,235.09,235.02,8.02001864]
[1733487200075,9.38270069,235.11,234.98,46.8603]
[1733487200279,11.38519648,235.1,235.02,2.02]
[1733487200572,9.38270069,235.11,235.02,2.02]
[1733487200771,11.38223026,235.1,235.02,2.02]
[1733487201179,9.38270069,235.11,235.02,2.02]
[1733487201776,11.37975787,235.1,235.02,2.02]
[1733487201979,9.38270069,235.11,235.02,2.02]
[1733487202177,11.37976347,235.1,235.02,2.02]
[1733487202379,9.38270069,235.11,235.02,2.02]
[1733487203279,9.38270069,235.14,235.02,2.02]
[1733487203475,11.37632727,235.13,235.02,2.02]
[1733487203684,9.38270069,235.14,235.02,2.02]
[1733487203878,11.37497618,235.13,235.02,2.02]
[1733487204179,9.38270069,235.14,235.02,2.02]
[1733487204384,11.3734115,235.13,235.02,2.02]
[1733487204585,9.38270069,235.14,235.02,2.02]
[1733487204783,11.37338049,235.13,235.02,2.02]
[1733487204987,9.38270069,235.14,235.02,2.02]
[1733487206381,3.9207,235.15,235.02,11.40270069]
[1733487206590,1.3122,235.15,235.02,11.40270069]
[1733487206985,1.3122,235.15,235.05,9.38270069]
[1733487207486,9.38270069,235.2,235.05,9.38270069]
[1733487207689,11.37031962,235.19,235.05,9.38270069]
[1733487207890,9.38270069,235.2,235.05,9.38270069]
[1733487208091,11.36898249,235.19,235.05,9.38270069]
[1733487208390,9.38270069,235.2,235.05,9.38270069]
[1733487208590,11.36984326,235.19,235.05,9.38270069]
[1733487208893,9.38270069,235.2,235.05,9.38270069]
[1733487209082,9.38270069,235.17,235.02,11.40270069]
[1733487209391,11.36997618,235.16,235.02,15.64714275]
[1733487210091,9.38270069,235.17,235.02,15.64714275]
[1733487210488,9.38270069,235.17,235.02,11.40270069]
[1733487211293,1.3869,235.19,235.05,9.38270069]
[1733487212493,11.37667605,235.18,235.05,9.38270069]
[1733487212694,1.3869,235.19,235.05,9.38270069]
[1733487212893,11.37667604,235.18,235.05,9.38270069]
[1733487213093,1.3869,235.19,235.05,9.38270069]
[1733487213298,11.37733592,235.18,235.05,9.38270069]
[1733487213497,9.38270069,235.17,235.02,11.40270069]
[1733487213800,9.38270069,235.17,235.03,2.02]
[1733487214690,9.38270069,235.17,235.03,6.32731446]
[1733487215089,9.38270069,235.17,235.03,2.02]
[1733487215397,11.38186403,235.16,235.03,6.21930203]
[1733487215693,9.38270069,235.17,235.03,2.02]
[1733487215895,11.38191147,235.16,235.03,6.28989283]
[1733487216097,9.38270069,235.17,235.03,6.28989283]
[1733487216295,11.38471424,235.16,235.03,6.28989283]
[1733487216594,9.38270069,235.14,235.03,2.02]
[1733487217296,11.38946271,235.13,235.03,2.02]
[1733487217487,9.38270069,235.14,235.04,2.02]
[1733487217798,11.38952973,235.13,235.04,2.02]
[1733487217995,9.38270069,235.14,235.04,2.02]
[1733487218198,11.3899405,235.13,235.04,2.02]
[1733487218392,11.3899405,235.12,235.04,2.02]
[1733487218701,9.38270069,235.14,235.04,2.02]
[1733487218990,11.39360649,235.13,235.04,2.02]
[1733487219194,11.39360649,235.12,235.04,2.02]
[1733487219395,11.39360649,235.13,235.04,2.02]
[1733487219595,11.39360649,235.12,235.04,2.02]
[1733487219789,11.39360649,235.11,235.04,2.02]
[1733487219994,11.39360649,235.1,235.04,2.02]
[1733487220195,9.38270069,235.14,235.04,2.02]
[1733487220496,11.39582549,235.13,235.05,2.02]
[1733487220696,9.38270069,235.14,235.05,2.02]
[1733487220697,11.39582549,235.12,235.05,2.02]
[1733487220897,11.39582549,235.11,235.05,2.02]
[1733487221099,11.39582549,235.1,235.01,0.28644]
[1733487221299,9.38270069,235.14,235.02,2.02]
[1733487221498,11.39548358,235.13,235.02,2.02]
[1733487221696,11.39548358,235.12,235.02,2.02]
[1733487222000,6.00454324,235.09,235.02,2.02]
[1733487224797,6.00454324,235.07,235.02,2.02]
[1733487226202,6.00454324,235.05,235.01,0.28644]
[1733487226995,6.00454324,235.03,235.01,0.28644]
[1733487228301,12.74,235.36,235.01,10.57624719]
[1733487228507,12.74,235.36,235.08,6.00454324]
[1733487228508,6.00454324,235.16,235.08,6.00454324]
[1733487228706,11.38926565,235.15,235.09,2.02]
[1733487229001,11.38926565,235.14,235.09,2.02]
[1733487229202,11.38926565,235.13,235.09,2.02]
[1733487229403,6.00454324,235.16,235.09,2.02]
[1733487230002,1.3345,235.19,235.09,2.02]
[1733487230204,11.38592008,235.18,235.05,9.37643191]
[1733487230404,11.38592008,235.17,235.06,2.02]
[1733487230594,1.3345,235.19,235.06,2.02]
[1733487230595,11.38592008,235.16,235.06,2.02]
[1733487230903,1.3345,235.19,235.06,2.02]
[1733487231104,11.38707715,235.18,235.06,2.02]
[1733487231307,11.38707715,235.17,235.06,2.02]
[1733487231602,11.38707715,235.16,235.06,2.02]
[1733487231803,11.38707715,235.15,235.06,2.02]
[1733487232004,1.3345,235.19,235.06,2.02]
[1733487232304,11.38840826,235.18,235.06,2.02]
[1733487232500,11.38840826,235.17,235.06,2.02]
[1733487232704,11.38840826,235.16,235.06,2.02]
[1733487232905,1.3345,235.19,235.06,2.02]
[1733487233105,11.38968214,235.18,235.06,2.02]
[1733487233307,11.38968214,235.17,235.06,2.02]
[1733487233607,11.38968214,235.16,235.06,2.02]
[1733487233805,11.38968214,235.18,235.06,2.02]
[1733487234009,11.39116809,235.17,235.06,2.02]
[1733487234210,11.39116809,235.16,235.06,2.02]
[1733487234507,11.39332635,235.15,235.02,11.96393191]
[1733487234702,11.39332635,235.14,235.03,2.02]
[1733487234902,11.39332635,235.13,235.03,2.02]
[1733487235099,9.37643191,235.17,235.03,2.02]
[1733487235306,11.39394708,235.16,235.03,2.02]
[1733487235503,11.39394708,235.15,235.03,2.02]
[1733487235704,11.39394708,235.14,235.03,2.02]
[1733487236002,11.39394708,235.13,235.03,2.02]
[1733487236209,11.39394708,235.12,234.98,9.37643191]
[1733487236408,20.77037899,235.11,234.99,2.02]
[1733487236705,11.39394708,235.1,234.99,2.02]
[1733487237210,12.67494708,235.1,234.99,2.02]
[1733487237416,11.39394708,235.09,234.99,2.02]
[1733487237613,11.39394708,235.09,234.95,9.37643191]
[1733487237809,11.39394708,235.09,234.96,2.02]
[1733487238406,11.39394708,235.09,234.95,9.37643191]
[1733487238614,11.39394708,235.09,234.96,2.02]
[1733487239514,11.39394708,235.09,234.97,4.19800638]
[1733487239715,11.39394708,235.09,234.95,9.37643191]
[1733487239912,11.39394708,235.09,234.98,2.02]
[1733487240811,11.39394708,235.09,234.98,11.39643191]
[1733487246313,11.39394708,235.09,234.98,15.54824424]
[1733487246512,11.39394708,235.09,234.98,11.39643191]
[1733487248414,11.39394708,235.09,234.98,2.02]
[1733487250015,17.39863433,235.09,235.01,6.00468725]
[1733487250318,6.00468725,235.09,235.01,6.00468725]
[1733487250918,1.281,235.1,235.03,6.00468725]
[1733487251118,1.281,235.1,235.07,6.00468725]
[1733487251418,6.00468725,235.18,235.09,6.00468725]
[1733487251619,12.73082413,235.17,235.1,2.02]
[1733487251820,11.39242413,235.16,235.1,2.02]
[1733487252020,11.39242413,235.15,235.1,2.02]
[1733487252321,1.3384,235.17,235.1,2.02]
[1733487256523,1.3384,235.17,235.11,2.02]
[1733487257116,11.3872152,235.16,235.11,2.02]
[1733487257426,1.3384,235.17,235.11,2.02]
[1733487257627,11.38765882,235.16,235.11,2.02]
[1733487257828,1.3384,235.17,235.11,2.02]
[1733487258022,11.38767294,235.16,235.11,2.02]
[1733487258228,1.3384,235.17,235.11,2.02]
[1733487258426,11.38797706,235.16,235.11,2.02]
[1733487258624,1.3384,235.17,235.11,2.02]
[1733487258928,11.38793483,235.16,235.11,2.02]
[1733487259227,1.3384,235.17,235.11,2.02]
[1733487259530,1.3384,235.17,235.05,13.14487082]
[1733487259531,10.41587082,235.14,235.08,2.02]
[1733487259725,11.38836691,235.13,235.08,2.02]
[1733487261621,11.75427082,235.17,235.08,2.02]
[1733487261820,11.39036167,235.16,235.08,2.02]
[1733487262023,11.39036167,235.15,235.08,2.02]
[1733487262224,1.3384,235.17,235.08,2.02]
[1733487262433,11.38932379,235.16,235.08,2.02]
[1733487262730,1.3384,235.17,235.08,2.02]
[1733487262933,11.38920184,235.16,235.08,2.02]
[1733487263131,1.3384,235.17,235.08,2.02]
[1733487263724,1.3939,235.19,235.08,2.02]
[1733487264327,1.3939,235.19,235.09,4.23569291]
[1733487264832,11.38620356,235.18,235.08,2.02]
[1733487265030,1.3939,235.19,235.08,2.02]
[1733487267935,2.7221,235.19,235.08,2.02]
[1733487268541,11.38203351,235.18,235.08,2.02]
[1733487268737,10.41587082,235.17,235.09,2.02]
[1733487268937,11.38259815,235.16,235.09,2.02]
[1733487270832,10.41587082,235.17,235.09,2.02]
[1733487272042,6.66936249,235.14,235.09,2.02]
[1733487274342,6.66936249,235.12,235.09,2.02]
[1733487274639,6.66936249,235.1,235.07,2.02]
[1733487276342,6.66936249,235.1,235.01,6.66936249]
[1733487276642,6.66936249,235.1,235.02,2.02]
[1733487277342,6.66936249,235.1,235.03,6.66936249]
[1733487277645,1.3051,235.18,235.07,6.66936249]
[1733487277845,6.66936249,235.14,235.08,2.02]
[1733487278144,1.3051,235.18,235.09,6.66936249]
[1733487278345,18.05921529,235.17,235.09,6.66936249]
[1733487278544,11.3898528,235.16,235.09,6.66936249]
[1733487278847,6.66936249,235.17,235.09,6.66936249]
[1733487279344,11.38977609,235.16,235.09,6.66936249]
[1733487279645,6.66936249,235.17,235.09,6.66936249]
[1733487280246,6.66936249,235.15,235.09,6.66936249]
[1733487282650,6.66936249,235.17,235.09,6.66936249]
[1733487286256,6.66936249,235.17,235.08,2.02]
[1733487286554,6.66936249,235.17,235.08,8.68936249]
[1733487288359,7.99756249,235.19,235.1,6.66936249]
[1733487288659,11.39580392,235.18,235.1,6.66936249]
[1733487288855,11.39580392,235.17,235.1,6.66936249]
[1733487289053,7.99756249,235.19,235.1,6.66936249]
[1733487289257,11.39668473,235.18,235.1,6.66936249]
[1733487289459,11.39668473,235.17,235.1,6.66936249]
[1733487289655,7.99756249,235.19,235.1,6.66936249]
[1733487289860,11.39668473,235.18,235.1,6.66936249]
[1733487290061,11.39668473,235.17,235.1,6.66936249]
[1733487290362,6.66936249,235.17,235.1,6.66936249]
[1733487290953,6.66936249,235.15,235.08,2.02]
[1733487295166,11.41571101,235.14,235.08,2.02]
[1733487295358,6.66936249,235.15,235.08,2.02]
[1733487295562,11.41571876,235.14,235.08,2.02]
[1733487295867,6.66936249,235.15,235.08,2.02]
[1733487296067,11.41581567,235.14,235.08,2.02]
[1733487296264,6.66936249,235.15,235.08,2.02]
[1733487296563,11.42052185,235.14,235.08,2.02]
[1733487296770,16.76244201,235.13,235.08,2.02]
[1733487296968,8.38122384,235.13,235.08,2.02]
[1733487297272,8.38122384,235.13,235.08,8.68936249]
[1733487300673,8.38122384,235.13,235.1,6.66936249]
[1733487302875,8.38122384,235.13,235.08,2.02]
[1733487303073,8.38122384,235.13,235.08,8.68936249]
[1733487303971,8.38122384,235.13,235.08,8.68769653]
[1733487306477,6.66769653,235.17,235.08,8.68769653]
[1733487306675,8.38123961,235.16,235.1,6.66769653]
[1733487306976,8.38123961,235.16,235.06,2.6463]
[1733487306977,6.66769653,235.2,235.12,6.66769653]
[1733487307176,19.80148069,235.19,235.14,6.66769653]
[1733487307373,8.38103789,235.18,235.16,6.66769653]
[1733487307676,6.66769653,235.24,235.17,2.02]
[1733487307868,19.79746787,235.23,235.17,2.02]
[1733487308073,19.79746787,235.22,235.17,2.02]
[1733487308369,8.37901719,235.21,235.17,2.02]
[1733487308574,6.66769653,235.24,235.17,2.02]
[1733487308876,19.79083133,235.23,235.18,6.66769653]
[1733487309079,2.6579,235.32,235.18,6.66769653]
[1733487309080,6.66769653,235.25,235.18,6.66769653]
[1733487309277,19.78968315,235.24,235.18,6.66769653]
[1733487309476,19.78968315,235.23,235.18,6.66769653]
[1733487309675,8.37563677,235.22,235.18,6.66769653]
[1733487309983,6.66769653,235.25,235.18,6.66769653]
[1733487310278,19.78185672,235.24,235.18,6.66769653]
[1733487310475,8.37233822,235.23,235.18,6.66769653]
[1733487310778,6.66769653,235.25,235.18,6.66769653]
[1733487310976,19.77546997,235.24,235.18,6.66769653]
[1733487311278,6.66769653,235.25,235.18,6.66769653]
[1733487311279,8.36962938,235.23,235.18,6.66769653]
[1733487311480,6.66769653,235.25,235.18,6.66769653]
[1733487311774,19.76995713,235.24,235.18,6.66769653]
[1733487311974,2.6579,235.32,235.18,6.66769653]
[1733487312278,6.66208283,235.26,235.19,6.66208283]
[1733487312478,8.3670252,235.25,235.19,6.66208283]
[1733487312679,6.66208283,235.26,235.19,6.66208283]
[1733487313867,6.66208283,235.24,235.17,2.02]
[1733487314072,6.66208283,235.24,235.17,8.68208283]
[1733487314479,6.66208283,235.26,235.19,6.66208283]
[1733487315482,19.7450902,235.25,235.19,6.66208283]
[1733487315778,19.7450902,235.24,235.21,6.66208283]
[1733487316081,6.66208283,235.28,235.22,2.02]
[1733487316278,19.74060484,235.27,235.22,2.02]
[1733487316579,19.74060484,235.26,235.22,2.02]
[1733487316774,8.35613827,235.25,235.22,2.02]
[1733487316972,6.66208283,235.29,235.22,2.02]
[1733487317177,19.73649912,235.28,235.22,2.02]
[1733487317379,8.35288067,235.27,235.22,2.02]
[1733487317578,1.3485,235.34,235.25,6.66208283]
[1733487317876,19.72816802,235.33,235.27,6.66208283]
[1733487318079,19.72816802,235.32,235.28,2.02]
[1733487318286,19.72816802,235.31,235.28,2.02]
[1733487318476,8.34946006,235.3,235.28,2.02]
[1733487318679,6.66208283,235.36,235.29,6.66208283]
[1733487318881,19.71581976,235.35,235.29,6.66208283]
[1733487319085,19.71581976,235.34,235.29,6.66208283]
[1733487319381,19.71581976,235.33,235.29,6.66208283]
[1733487319581,19.71581976,235.32,235.29,6.66208283]
[1733487319778,6.66208283,235.36,235.29,6.66208283]
[1733487319974,19.70525364,235.35,235.29,6.66208283]
[1733487320184,19.70525364,235.34,235.29,6.66208283]
[1733487320384,19.70525364,235.33,235.29,6.66208283]
[1733487320575,8.3394685,235.32,235.29,6.66208283]
[1733487320780,6.66208283,235.36,235.29,6.66208283]
[1733487320973,19.69822956,235.35,235.33,6.66208283]
[1733487321182,19.69822956,235.35,235.25,4.28617185]
[1733487321183,6.66208283,235.42,235.34,8.68208283]
[1733487321383,19.68756639,235.41,235.35,2.02]
[1733487321681,19.68756639,235.4,235.35,2.02]
[1733487321876,19.68756639,235.39,235.35,2.02]
[1733487322078,19.68756639,235.38,235.35,2.02]
[1733487322271,8.01058283,235.43,235.35,2.02]